[Event "AUT-ch U18-Open 2025"]
[Site "Fuerstenfeld"]
[Date "2025.04.13"]
[Round "2.1"]
[White "Balint, Peter"]
[Black "Hake, Nils"]
[Result "1-0"]
[Annotator "ChessBase"]
[ECO "A14"]
[WhiteElo "2366"]
[BlackElo "2054"]
[PlyCount "105"]
[EventDate "2025.04.12"]
[EventType "swiss"]
[EventCountry "AUT"]
[SourceTitle "playchess.com"]
[Source "ChessBase"]
[SourceQuality "1"]
[TimeControl "5400+30"]

1. Nf3 {[%emt 0:00:02]} Nf6 {[%emt 0:00:35]} 2. g3 {[%emt 0:00:05]} d5 {[%emt 0:00:15]} 3. Bg2 {[%emt 0:00:04]} e6 {[%emt 0:01:04]} 4. O-O {[%emt 0:00:07]} Be7 {[%emt 0:00:28]} 5. c4 {[%emt 0:00:10]} O-O {[%emt 0:00:39]} 6. b3 {[%emt 0:00:12]} b6 {[%emt 0:01:48]} 7. cxd5 {[%emt 0:00:37]} exd5 {[%emt 0:01:33]} 8. Bb2 {[%emt 0:00:46]} Re8 {[%emt 0:01:37]} 9. Nc3 {[%emt 0:01:34]} Bb7 {[%emt 0:02:45]} 10. e3 {[%emt 0:00:46]} Nbd7 {[%emt 0:01:25]} 11. Qc2 {[%emt 0:02:49]} Rc8 {[%emt 0:15:48]} 12. Ne2 {[%emt 0:22:05]} c5 {[%emt 0:10:45]} 13. Rac1 {[%emt 0:02:10]} Ba6 {[%emt 0:03:59]} 14. d3 {[%emt 0:04:02]} Bd6 {[%emt 0:01:15]} 15. Rfd1 {[%emt 0:01:17]} Qe7 {[%emt 0:05:07]} 16. Nf4 {[%emt 0:01:55]} Bb7 {[%emt 0:03:14]} 17. Qb1 {[%emt 0:03:22]} b5 {[%emt 0:03:30]} 18. d4 {[%emt 0:02:17]} c4 {[%emt 0:02:12]} 19. Ne5 {[%emt 0:00:19]} Rb8 {[%emt 0:12:06]} 20. bxc4 {[%emt 0:05:08]} bxc4 {[%emt 0:00:49]} 21. Nxd7 {[%emt 0:01:26]} Qxd7 {[%emt 0:00:21]} 22. Ne2 {[%emt 0:01:04]} Bc6 {[%emt 0:01:20]} 23. Nc3 {[%emt 0:00:22]} Ba4 {[%emt 0:06:37]} 24. Rd2 {[%emt 0:01:56]} Bb4 {[%emt 0:01:44]} 25. Qa1 {[%emt 0:01:59]} Rb6 {[%emt 0:01:57]} 26. Re2 {[%emt 0:01:28]} Reb8 {[%emt 0:03:04]} 27. f3 {[%emt 0:00:22]} Bc6 {[%emt 0:00:39]} 28. Rf1 {[%emt 0:02:50]} Ra6 {[%emt 0:01:25]} 29. Qc1 {[%emt 0:00:20]} Ba5 {[%emt 0:02:58]} 30. Ba1 {[%emt 0:01:18]} Rab6 {[%emt 0:01:36]} 31. Qc2 {[%emt 0:01:59]} Ne8 {[%emt 0:03:11]} 32. Kh1 {[%emt 0:03:34]} f5 {[%emt 0:01:25]} 33. Bh3 {[%emt 0:10:08]} g6 {[%emt 0:01:11]} 34. e4 {[%emt 0:01:00]} dxe4 {[%emt 0:00:54]} 35. Nxe4 {[%emt 0:02:54]} Qb7 {[%emt 0:01:12]} 36. Nc5 {[%emt 0:02:55]} Qf7 {[%emt 0:03:31]} 37. Bg2 {[%emt 0:01:17]} Nf6 {[%emt 0:00:43]} 38. a4 {[%emt 0:04:59]} Bd5 {[%emt 0:00:18]} 39. Bc3 {[%emt 0:00:54]} Bb4 {[%emt 0:00:24]} 40. Rfe1 {[%emt 0:00:17]} Re8 {[%emt 0:01:40]} 41. Rxe8+ {[%emt 0:01:11]} Nxe8 {[%emt 0:00:01]} 42. a5 {[%emt 0:00:28]} Rb5 {[%emt 0:00:44]} 43. Rb1 {[%emt 0:03:26]} Bxc3 {[%emt 0:00:58]} 44. Rxb5 {[%emt 0:00:13]} Bxd4 {[%emt 0:00:23]} 45. Na4 {[%emt 0:02:49]} Bc6 {[%emt 0:00:53]} 46. Rb1 {[%emt 0:00:12]} Nd6 {[%emt 0:02:13]} 47. Nc3 {[%emt 0:02:10]} Qe6 {[%emt 0:00:19]} 48. Qd2 {[%emt 0:03:09]} Be3 {[%emt 0:01:13]} 49. Qe2 {[%emt 0:00:52]} Qe5 {[%emt 0:00:22]} 50. Re1 {[%emt 0:00:48]} Qxc3 {[%emt 0:00:05]} 51. Qxe3 {[%emt 0:00:03]} Qxa5 {[%emt 0:00:13]} 52. Rb1 {[%emt 0:02:02]} Nf7 {[%emt 0:01:28]} 53. Qd4 {[%emt 0:01:04]} 1-0

[Event "AUT-ch U18-Open 2025"]
[Site "Fuerstenfeld"]
[Date "2025.04.13"]
[Round "2.2"]
[White "Gold, Theodor"]
[Black "Gschiel, Alexander"]
[Result "1/2-1/2"]
[Annotator "ChessBase"]
[ECO "C88"]
[WhiteElo "2066"]
[BlackElo "2317"]
[PlyCount "152"]
[EventDate "2025.04.12"]
[EventType "swiss"]
[EventCountry "AUT"]
[SourceTitle "playchess.com"]
[Source "ChessBase"]
[SourceQuality "1"]
[TimeControl "5400+30"]

1. e4 {[%emt 0:00:02]} e5 {[%emt 0:00:36]} 2. Nf3 {[%emt 0:00:13]} Nc6 {[%emt 0:00:07]} 3. Bb5 {[%emt 0:00:07]} a6 {[%emt 0:00:24]} 4. Ba4 {[%emt 0:00:31]} Nf6 {[%emt 0:00:17]} 5. O-O {[%emt 0:00:09]} b5 {[%emt 0:00:18]} 6. Bb3 {[%emt 0:00:09]} Be7 {[%emt 0:00:08]} 7. Re1 {[%emt 0:00:22]} O-O {[%emt 0:00:17]} 8. h3 {[%emt 0:00:39]} d5 {[%emt 0:00:57]} 9. exd5 {[%emt 0:00:09]} Nxd5 {[%emt 0:00:05]} 10. Nxe5 {[%emt 0:02:05]} Nxe5 {[%emt 0:00:06]} 11. Rxe5 {[%emt 0:00:11]} Nb6 {[%emt 0:00:04]} 12. d3 {[%emt 0:12:13]} c5 {[%emt 0:01:07]} 13. c3 {[%emt 0:04:24]} Qc7 {[%emt 0:06:13]} 14. Re1 {[%emt 0:01:44]} Bb7 {[%emt 0:08:52]} 15. Nd2 {[%emt 0:17:52]} Rad8 {[%emt 0:04:04]} 16. Nf1 {[%emt 0:08:30]} c4 {[%emt 0:08:01]} 17. Bc2 {[%emt 0:00:17]} cxd3 {[%emt 0:01:30]} 18. Bxd3 {[%emt 0:01:56]} Qc6 {[%emt 0:00:58]} 19. Qf3 {[%emt 0:12:18]} Rxd3 {[%emt 0:12:48]} 20. Qxc6 {[%emt 0:00:20]} Bxc6 {[%emt 0:00:05]} 21. Rxe7 {[%emt 0:00:07]} Rd1 {[%emt 0:00:07]} 22. b3 {[%emt 0:13:31]} Nd5 {[%emt 0:02:52]} 23. Ra7 {[%emt 0:00:18]} Nf4 {[%emt 0:10:04]} 24. Bb2 {[%emt 0:01:37]} Rd6 {[%emt 0:02:24]} 25. Ne3 {[%emt 0:03:00]} Rg6 {[%emt 0:06:14]} 26. Kf1 {[%emt 0:07:13]} f5 {[%emt 0:05:47]} 27. f3 {[%emt 0:04:16]} Nh5 {[%emt 0:07:19]} 28. c4 {[%emt 0:01:28]} Ng3+ {[%emt 0:04:11]} 29. Kf2 {[%emt 0:00:40]} f4 {[%emt 0:01:34]} 30. Nd5 {[%emt 0:00:47]} Bxd5 {[%emt 0:00:04]} 31. cxd5 {[%emt 0:00:02]} Rd8 {[%emt 0:00:32]} 32. Be5 {[%emt 0:04:24]} Rxd5 {[%emt 0:02:10]} 33. Bxf4 {[%emt 0:00:09]} Nh5 {[%emt 0:00:13]} 34. Rc1 {[%emt 0:01:17]} h6 {[%emt 0:00:32]} 35. Be3 {[%emt 0:00:20]} Ng3 {[%emt 0:02:02]} 36. Bf4 {[%emt 0:02:49]} Nf5 {[%emt 0:00:22]} 37. g4 {[%emt 0:00:28]} Nd4 {[%emt 0:00:29]} 38. Be3 {[%emt 0:01:08]} Rgd6 {[%emt 0:01:33]} 39. Rd1 {[%emt 0:00:56]} Nc2 {[%emt 0:01:14]} 40. Rxd5 {[%emt 0:00:20]} Rxd5 {[%emt 0:00:04]} 41. Rxa6 {[%emt 0:00:19]} Rd3 {[%emt 0:00:04]} 42. Re6 {[%emt 0:00:53]} Nb4 {[%emt 0:01:38]} 43. a4 {[%emt 0:00:58]} bxa4 {[%emt 0:00:10]} 44. bxa4 {[%emt 0:00:02]} Ra3 {[%emt 0:00:06]} 45. Re4 {[%emt 0:00:59]} Ra2+ {[%emt 0:01:28]} 46. Kg3 {[%emt 0:00:17]} Nd3 {[%emt 0:00:03]} 47. h4 {[%emt 0:00:44]} Ne1 {[%emt 0:00:33]} 48. h5 {[%emt 0:00:38]} Rg2+ {[%emt 0:00:20]} 49. Kf4 {[%emt 0:00:28]} Kf7 {[%emt 0:01:03]} 50. Bd4 {[%emt 0:00:32]} Nd3+ {[%emt 0:00:15]} 51. Ke3 {[%emt 0:00:06]} Nc1 {[%emt 0:00:04]} 52. a5 {[%emt 0:00:58]} Ra2 {[%emt 0:00:43]} 53. Bb6 {[%emt 0:00:13]} Nb3 {[%emt 0:00:49]} 54. Re5 {[%emt 0:00:29]} Ra3 {[%emt 0:00:02]} 55. Kf2 {[%emt 0:00:16]} g6 {[%emt 0:00:45]} 56. hxg6+ {[%emt 0:00:11]} Kxg6 {[%emt 0:00:04]} 57. Rd5 {[%emt 0:01:17]} Ra2+ {[%emt 0:00:14]} 58. Kg3 {[%emt 0:00:11]} Nd2 {[%emt 0:00:04]} 59. Kf4 {[%emt 0:00:51]} Ra4+ {[%emt 0:00:19]} 60. Kg3 {[%emt 0:00:22]} Ra2 {[%emt 0:00:13]} 61. Rd6+ {[%emt 0:00:14]} Kf7 {[%emt 0:00:05]} 62. Rxh6 {[%emt 0:00:58]} Ra3 {[%emt 0:00:04]} 63. Rh5 {[%emt 0:00:31]} Rxf3+ {[%emt 0:00:12]} 64. Kg2 {[%emt 0:00:01]} Ra3 {[%emt 0:00:09]} 65. Rf5+ {[%emt 0:00:15]} Kg6 {[%emt 0:00:01]} 66. Rd5 {[%emt 0:01:01]} Nc4 {[%emt 0:00:39]} 67. Rc5 {[%emt 0:00:42]} Ne3+ {[%emt 0:00:11]} 68. Kf3 {[%emt 0:00:22]} Nd5+ {[%emt 0:00:52]} 69. Kf2 {[%emt 0:00:27]} Nf4 {[%emt 0:00:32]} 70. Rc6+ {[%emt 0:00:31]} Kg5 {[%emt 0:01:18]} 71. Be3 {[%emt 0:00:39]} Kxg4 {[%emt 0:00:41]} 72. Rc4 {[%emt 0:00:21]} Ra2+ {[%emt 0:00:03]} 73. Kf1 {[%emt 0:00:27]} Ra1+ {[%emt 0:00:59]} 74. Kf2 {[%emt 0:00:08]} Ra2+ {[%emt 0:00:02]} 75. Kf1 {[%emt 0:00:03]} Ra1+ {[%emt 0:00:02]} 76. Kf2 {[%emt 0:01:17]} Ra2+ {[%emt 0:00:03]} 1/2-1/2

[Event "AUT-ch U18-Open 2025"]
[Site "Fuerstenfeld"]
[Date "2025.04.13"]
[Round "2.3"]
[White "Leitgeb, Julian"]
[Black "Loretz, Jonas"]
[Result "1-0"]
[Annotator "ChessBase"]
[ECO "C00"]
[WhiteElo "2313"]
[BlackElo "1869"]
[PlyCount "105"]
[EventDate "2025.04.12"]
[EventType "swiss"]
[EventCountry "AUT"]
[SourceTitle "playchess.com"]
[Source "ChessBase"]
[SourceQuality "1"]
[TimeControl "5400+30"]

1. Nf3 {[%emt 0:00:21]} Nf6 {[%emt 0:00:19]} 2. g3 {[%emt 0:03:05]} d5 {[%emt 0:02:00]} 3. Bg2 {[%emt 0:00:29]} e6 {[%emt 0:00:27]} 4. O-O {[%emt 0:00:26]} Be7 {[%emt 0:00:44]} 5. d3 {[%emt 0:00:47]} O-O {[%emt 0:01:30]} 6. Nbd2 {[%emt 0:00:37]} b6 {[%emt 0:01:26]} 7. e4 {[%emt 0:01:10]} c5 {[%emt 0:04:23]} 8. Re1 {[%emt 0:01:10]} Bb7 {[%emt 0:03:07]} 9. e5 {[%emt 0:00:38]} Nfd7 {[%emt 0:00:57]} 10. h4 {[%emt 0:00:44]} Nc6 {[%emt 0:03:45]} 11. Nf1 {[%emt 0:01:13]} Qc7 {[%emt 0:03:58]} 12. Bf4 {[%emt 0:01:02]} Rfd8 {[%emt 0:05:01]} 13. h5 {[%emt 0:01:48]} Nf8 {[%emt 0:05:38]} 14. N1h2 {[%emt 0:02:14]} d4 {[%emt 0:02:57]} 15. Ng4 {[%emt 0:10:40]} Nd7 {[%emt 0:07:44]} 16. Qd2 {[%emt 0:03:36]} Bf8 {[%emt 0:03:00]} 17. Ng5 {[%emt 0:16:50]} Ne7 {[%emt 0:04:11]} 18. Bxb7 {[%emt 0:05:45]} Qxb7 {[%emt 0:01:03]} 19. Ne4 {[%emt 0:00:17]} Nf5 {[%emt 0:02:43]} 20. h6 {[%emt 0:00:53]} g6 {[%emt 0:04:07]} 21. Bg5 {[%emt 0:01:08]} Rdc8 {[%emt 0:04:50]} 22. Qf4 {[%emt 0:00:49]} Qc7 {[%emt 0:10:30]} 23. Ngf6+ {[%emt 0:03:17]} Nxf6 {[%emt 0:02:05]} 24. Nxf6+ {[%emt 0:00:13]} Kh8 {[%emt 0:00:08]} 25. g4 {[%emt 0:00:21]} Ne7 {[%emt 0:01:37]} 26. Ne8 {[%emt 0:04:27]} Nd5 {[%emt 0:06:06]} 27. Nxc7 {[%emt 0:01:37]} Nxf4 {[%emt 0:00:11]} 28. Nxa8 {[%emt 0:05:28]} Nh3+ {[%emt 0:01:19]} 29. Kg2 {[%emt 0:00:05]} Nxg5 {[%emt 0:00:04]} 30. Nxb6 {[%emt 0:00:25]} axb6 {[%emt 0:00:30]} 31. f4 {[%emt 0:00:18]} Bxh6 {[%emt 0:01:05]} 32. fxg5 {[%emt 0:00:42]} Bxg5 {[%emt 0:00:09]} 33. a4 {[%emt 0:03:43]} Ra8 {[%emt 0:02:46]} 34. Kf3 {[%emt 0:00:59]} Kg7 {[%emt 0:01:49]} 35. Rh1 {[%emt 0:00:37]} h6 {[%emt 0:02:23]} 36. Ra3 {[%emt 0:00:53]} Bd2 {[%emt 0:03:23]} 37. Rb3 {[%emt 0:02:30]} Ra6 {[%emt 0:07:28]} 38. Rh2 {[%emt 0:02:15]} Bg5 {[%emt 0:04:07]} 39. Rb5 {[%emt 0:04:03]} Be7 {[%emt 0:00:00]} 40. b3 {[%emt 0:00:38]} Bd8 {[%emt 0:00:00]} 41. Rh1 {[%emt 0:03:36]} Ra5 {[%emt 0:00:01]} 42. Rxa5 {[%emt 0:02:14]} bxa5 {[%emt 0:00:08]} 43. c3 {[%emt 0:00:06]} dxc3 {[%emt 0:01:17]} 44. Rc1 {[%emt 0:00:02]} Be7 {[%emt 0:00:23]} 45. Rxc3 {[%emt 0:00:06]} h5 {[%emt 0:00:15]} 46. gxh5 {[%emt 0:01:02]} gxh5 {[%emt 0:00:02]} 47. Rc1 {[%emt 0:00:35]} Kg6 {[%emt 0:00:29]} 48. Ke4 {[%emt 0:03:46]} h4 {[%emt 0:00:50]} 49. Rg1+ {[%emt 0:00:14]} Bg5 {[%emt 0:00:11]} 50. d4 {[%emt 0:02:35]} cxd4 {[%emt 0:00:23]} 51. b4 {[%emt 0:00:08]} axb4 {[%emt 0:00:56]} 52. a5 {[%emt 0:00:02]} Kh5 {[%emt 0:01:02]} 53. a6 {[%emt 0:00:27]} 1-0

[Event "AUT-ch U18-Open 2025"]
[Site "Fuerstenfeld"]
[Date "2025.04.13"]
[Round "2.4"]
[White "Archan, Elikya"]
[Black "Wendl, Philipp"]
[Result "0-1"]
[Annotator "ChessBase"]
[ECO "B22"]
[WhiteElo "2048"]
[BlackElo "2268"]
[PlyCount "104"]
[EventDate "2025.04.12"]
[EventType "swiss"]
[EventCountry "AUT"]
[SourceTitle "playchess.com"]
[Source "ChessBase"]
[SourceQuality "1"]
[TimeControl "5400+30"]

1. e4 {[%emt 0:00:03]} c5 {[%emt 0:00:31]} 2. c3 {[%emt 0:00:06]} d5 {[%emt 0:01:01]} 3. exd5 {[%emt 0:00:06]} Qxd5 {[%emt 0:00:05]} 4. d4 {[%emt 0:00:07]} Nf6 {[%emt 0:00:37]} 5. Nf3 {[%emt 0:00:07]} e6 {[%emt 0:00:36]} 6. Na3 {[%emt 0:00:12]} Nc6 {[%emt 0:00:50]} 7. Nb5 {[%emt 0:06:18]} Qd8 {[%emt 0:00:10]} 8. dxc5 {[%emt 0:01:18]} Bxc5 {[%emt 0:00:31]} 9. Qxd8+ {[%emt 0:02:58]} Kxd8 {[%emt 0:00:09]} 10. Bg5 {[%emt 0:00:10]} Ke7 {[%emt 0:00:23]} 11. Rd1 {[%emt 0:07:56]} h6 {[%emt 0:02:16]} 12. Bf4 {[%emt 0:01:15]} Ne4 {[%emt 0:01:34]} 13. Nbd4 {[%emt 0:02:33]} Rd8 {[%emt 0:13:42]} 14. Bd3 {[%emt 0:05:17]} Nf6 {[%emt 0:02:39]} 15. Nxc6+ {[%emt 0:03:55]} bxc6 {[%emt 0:00:02]} 16. O-O {[%emt 0:00:22]} Nh5 {[%emt 0:10:37]} 17. Be5 {[%emt 0:01:01]} f6 {[%emt 0:05:13]} 18. Bd4 {[%emt 0:01:26]} Bd6 {[%emt 0:00:14]} 19. Rfe1 {[%emt 0:04:08]} Nf4 {[%emt 0:01:24]} 20. Be4 {[%emt 0:04:15]} Bb7 {[%emt 0:05:19]} 21. Nh4 {[%emt 0:17:26]} Kf7 {[%emt 0:03:28]} 22. Be3 {[%emt 0:01:25]} g5 {[%emt 0:05:24]} 23. Nf3 {[%emt 0:01:57]} Nd5 {[%emt 0:03:59]} 24. Bc2 {[%emt 0:05:26]} Nxe3 {[%emt 0:04:05]} 25. Rxe3 {[%emt 0:00:18]} Bf4 {[%emt 0:05:56]} 26. Ree1 {[%emt 0:03:28]} c5 {[%emt 0:04:05]} 27. Bb3 {[%emt 0:04:44]} Rxd1 {[%emt 0:01:29]} 28. Rxd1 {[%emt 0:00:48]} Ke7 {[%emt 0:00:42]} 29. Ne1 {[%emt 0:06:00]} Rc8 {[%emt 0:06:41]} 30. Bc4 {[%emt 0:00:55]} h5 {[%emt 0:01:37]} 31. Nd3 {[%emt 0:00:32]} Bd6 {[%emt 0:00:24]} 32. Re1 {[%emt 0:00:19]} e5 {[%emt 0:00:07]} 33. f4 {[%emt 0:00:55]} gxf4 {[%emt 0:09:20]} 34. Nxf4 {[%emt 0:00:09]} f5 {[%emt 0:00:49]} 35. Nxh5 {[%emt 0:01:09]} Rh8 {[%emt 0:01:40]} 36. Ng3 {[%emt 0:00:23]} Kf6 {[%emt 0:00:24]} 37. Rf1 {[%emt 0:07:04]} f4 {[%emt 0:01:45]} 38. Bd3 {[%emt 0:00:06]} c4 {[%emt 0:04:07]} 39. Bxc4 {[%emt 0:04:24]} Kg5 {[%emt 0:00:54]} 40. Ne2 {[%emt 0:00:22]} e4 {[%emt 0:00:56]} 41. Rd1 {[%emt 0:01:34]} Bc5+ {[%emt 0:00:20]} 42. Nd4 {[%emt 0:00:41]} f3 {[%emt 0:00:34]} 43. gxf3 {[%emt 0:00:40]} exf3 {[%emt 0:00:05]} 44. b4 {[%emt 0:02:12]} Bb6 {[%emt 0:00:38]} 45. Re1 {[%emt 0:02:34]} Rc8 {[%emt 0:00:43]} 46. Bb3 {[%emt 0:01:57]} Rxc3 {[%emt 0:00:12]} 47. Rd1 {[%emt 0:00:06]} Kf4 {[%emt 0:01:32]} 48. Kf1 {[%emt 0:00:35]} Bxd4 {[%emt 0:00:25]} 49. Rxd4+ {[%emt 0:00:11]} Ke3 {[%emt 0:00:03]} 50. Rd6 {[%emt 0:01:44]} Rc1+ {[%emt 0:00:20]} 51. Rd1 {[%emt 0:00:43]} Rxd1+ {[%emt 0:00:21]} 52. Bxd1 {[%emt 0:00:12]} Ba6+ {[%emt 0:00:01]} 0-1

[Event "AUT-ch U18-Open 2025"]
[Site "Fuerstenfeld"]
[Date "2025.04.13"]
[Round "2.5"]
[White "Mangeng, Lukas"]
[Black "Gruenwald, Simon"]
[Result "0-1"]
[Annotator "NA"]
[ECO "B13"]
[WhiteElo "1688"]
[BlackElo "2101"]
[PlyCount "126"]
[EventDate "2025.04.12"]
[EventType "swiss"]
[EventCountry "AUT"]
[SourceTitle "playchess.com"]
[Source "ChessBase"]
[SourceQuality "1"]
[TimeControl "5400+30"]

1. d4 {[%emt 0:00:04]} d5 {[%emt 0:00:02]} 2. Nf3 {[%emt 0:00:24]} Nf6 {[%emt 0:00:04]} 3. Bf4 {[%emt 0:00:23]} c5 {[%emt 0:00:26]} 4. c3 {[%emt 0:00:29]} Nc6 {[%emt 0:00:14]} 5. e3 {[%emt 0:00:40]} e6 {[%emt 0:00:24]} 6. Bd3 {[%emt 0:02:18]} Bd6 {[%emt 0:02:33]} 7. Bg3 {[%emt 0:05:39]} O-O {[%emt 0:00:19]} 8. Nbd2 {[%emt 0:04:17]} cxd4 {[%emt 0:00:35]} 9. exd4 {[%emt 0:01:16]} a6 {[%emt 0:02:44]} 10. O-O {[%emt 0:05:23]} Qc7 {[%emt 0:13:03]} 11. Bxd6 {[%emt 0:03:43]} Qxd6 {[%emt 0:00:04]} 12. Re1 {[%emt 0:02:11]} Bd7 {[%emt 0:03:12]} 13. Ne5 {[%emt 0:04:19]} b5 {[%emt 0:01:45]} 14. a3 {[%emt 0:01:36]} Rfb8 {[%emt 0:01:39]} 15. Qe2 {[%emt 0:02:26]} Ne7 {[%emt 0:02:13]} 16. f4 {[%emt 0:09:19]} a5 {[%emt 0:04:45]} 17. b4 {[%emt 0:02:50]} Be8 {[%emt 0:06:45]} 18. Nb3 {[%emt 0:06:00]} a4 {[%emt 0:06:29]} 19. Nc5 {[%emt 0:00:43]} Qc7 {[%emt 0:03:30]} 20. Rab1 {[%emt 0:05:50]} Nd7 {[%emt 0:00:48]} 21. h3 {[%emt 0:06:30]} Nb6 {[%emt 0:02:00]} 22. g3 {[%emt 0:05:41]} Nc4 {[%emt 0:00:09]} 23. Bxc4 {[%emt 0:00:03]} dxc4 {[%emt 0:00:18]} 24. Qg4 {[%emt 0:03:32]} Rb6 {[%emt 0:02:47]} 25. Re3 {[%emt 0:06:16]} Nd5 {[%emt 0:00:48]} 26. Rf3 {[%emt 0:00:02]} Nf6 {[%emt 0:00:41]} 27. Qh4 {[%emt 0:01:56]} Bc6 {[%emt 0:05:50]} 28. Nxc6 {[%emt 0:01:43]} Qxc6 {[%emt 0:00:17]} 29. Rbf1 {[%emt 0:01:30]} Ne4 {[%emt 0:01:28]} 30. Nxe4 {[%emt 0:00:04]} Qxe4 {[%emt 0:00:02]} 31. g4 {[%emt 0:02:31]} g6 {[%emt 0:06:54]} 32. Qe1 {[%emt 0:01:34]} Qxe1 {[%emt 0:00:42]} 33. Rxe1 {[%emt 0:00:02]} Rd8 {[%emt 0:01:15]} 34. Rfe3 {[%emt 0:01:38]} Rd5 {[%emt 0:02:20]} 35. Kf2 {[%emt 0:01:09]} Rdd6 {[%emt 0:04:49]} 36. Kf3 {[%emt 0:01:18]} Kg7 {[%emt 0:02:56]} 37. h4 {[%emt 0:01:31]} h6 {[%emt 0:01:03]} 38. g5 {[%emt 0:01:36]} Rd8 {[%emt 0:00:36]} 39. Kg4 {[%emt 0:01:19]} Rbb8 {[%emt 0:00:59]} 40. Rh3 {[%emt 0:01:14]} Rd5 {[%emt 0:00:50]} 41. Re5 {[%emt 0:01:04]} Rxe5 {[%emt 0:00:17]} 42. fxe5 {[%emt 0:00:06]} Rh8 {[%emt 0:00:37]} 43. Kg3 {[%emt 0:00:47]} Kf8 {[%emt 0:00:38]} 44. Kg4 {[%emt 0:02:01]} Ke7 {[%emt 0:00:13]} 45. Rh1 {[%emt 0:03:38]} hxg5 {[%emt 0:00:18]} 46. Kxg5 {[%emt 0:00:16]} Rh5+ {[%emt 0:00:03]} 47. Kg4 {[%emt 0:00:22]} Rf5 {[%emt 0:00:27]} 48. Kg3 {[%emt 0:00:36]} Kd7 {[%emt 0:02:10]} 49. Re1 {[%emt 0:00:15]} Kc6 {[%emt 0:00:15]} 50. Kg2 {[%emt 0:00:30]} Kd5 {[%emt 0:01:53]} 51. Kg3 {[%emt 0:00:20]} Kc6 {[%emt 0:01:14]} 52. Kg2 {[%emt 0:00:32]} Kc7 {[%emt 0:03:10]} 53. Kg3 {[%emt 0:00:57]} Kd7 {[%emt 0:00:05]} 54. Kg2 {[%emt 0:00:30]} Kc6 {[%emt 0:00:00]} 55. Kg3 {[%emt 0:01:07]} Kd5 {[%emt 0:00:01]} 56. Kg2 {[%emt 0:02:25]} Rf4 {[%emt 0:01:01]} 57. Rh1 {[%emt 0:02:00]} Ke4 {[%emt 0:00:43]} 58. Rh3 {[%emt 0:00:34]} Kd5 {[%emt 0:00:32]} 59. Rh1 {[%emt 0:00:26]} Ke4 {[%emt 0:18:05]} 60. Rh3 {[%emt 0:00:01]} Rf5 {[%emt 0:00:00]} 61. Rg3 {[%emt 0:00:51]} Kf4 {[%emt 0:00:00]} 62. Rh3 {[%emt 0:00:22]} Kg4 {[%emt 0:00:00]} 63. Rh1 {[%emt 0:00:40]} Rf3 {[%emt 0:00:00]} 0-1

[Event "AUT-ch U18-Open 2025"]
[Site "Fuerstenfeld"]
[Date "2025.04.13"]
[Round "2.6"]
[White "Maier, Tobias"]
[Black "Fitz, Jonathan David"]
[Result "0-1"]
[Annotator "NA"]
[ECO "C42"]
[WhiteElo "1915"]
[BlackElo "1918"]
[PlyCount "116"]
[EventDate "2025.04.12"]
[EventType "swiss"]
[EventCountry "AUT"]
[SourceTitle "playchess.com"]
[Source "ChessBase"]
[SourceQuality "1"]
[TimeControl "5400+30"]

1. e4 {[%emt 0:00:01]} e5 {[%emt 0:00:05]} 2. Nf3 {[%emt 0:00:04]} Nf6 {[%emt 0:00:06]} 3. Nc3 {[%emt 0:00:19]} Bb4 {[%emt 0:00:06]} 4. Bc4 {[%emt 0:04:35]} O-O {[%emt 0:00:05]} 5. d3 {[%emt 0:01:22]} d5 {[%emt 0:00:19]} 6. exd5 {[%emt 0:00:50]} Nxd5 {[%emt 0:00:07]} 7. Bxd5 {[%emt 0:06:53]} Qxd5 {[%emt 0:00:05]} 8. O-O {[%emt 0:02:39]} Bxc3 {[%emt 0:00:05]} 9. bxc3 {[%emt 0:00:04]} Bg4 {[%emt 0:00:06]} 10. Re1 {[%emt 0:03:44]} Bxf3 {[%emt 0:00:11]} 11. Qxf3 {[%emt 0:00:16]} Qxf3 {[%emt 0:00:05]} 12. gxf3 {[%emt 0:00:06]} Nc6 {[%emt 0:01:11]} 13. f4 {[%emt 0:01:34]} Rfe8 {[%emt 0:01:37]} 14. Kg2 {[%emt 0:01:52]} f6 {[%emt 0:05:32]} 15. Rb1 {[%emt 0:04:14]} b6 {[%emt 0:00:41]} 16. f3 {[%emt 0:02:18]} Kf7 {[%emt 0:08:41]} 17. Kf2 {[%emt 0:01:33]} Re6 {[%emt 0:05:26]} 18. fxe5 {[%emt 0:17:41]} Nxe5 {[%emt 0:00:53]} 19. Bf4 {[%emt 0:02:59]} Rae8 {[%emt 0:01:36]} 20. a4 {[%emt 0:07:30]} g5 {[%emt 0:12:36]} 21. Bd2 {[%emt 0:19:44]} g4 {[%emt 0:02:05]} 22. f4 {[%emt 0:04:14]} Nf3 {[%emt 0:00:08]} 23. Rxe6 {[%emt 0:01:28]} Rxe6 {[%emt 0:00:05]} 24. Be3 {[%emt 0:00:07]} f5 {[%emt 0:05:28]} 25. h3 {[%emt 0:04:53]} h5 {[%emt 0:00:11]} 26. Rb5 {[%emt 0:04:20]} Kg6 {[%emt 0:00:39]} 27. hxg4 {[%emt 0:02:31]} hxg4 {[%emt 0:00:06]} 28. Rd5 {[%emt 0:00:47]} Re7 {[%emt 0:01:53]} 29. Rd8 {[%emt 0:00:32]} Rh7 {[%emt 0:27:40]} 30. Rg8+ {[%emt 0:01:08]} Rg7 {[%emt 0:00:51]} 31. Rf8 {[%emt 0:00:24]} Rf7 {[%emt 0:01:04]} 32. Rg8+ {[%emt 0:00:06]} Kf6 {[%emt 0:00:15]} 33. c4 {[%emt 0:01:51]} Rh7 {[%emt 0:02:54]} 34. Rf8+ {[%emt 0:00:48]} Ke6 {[%emt 0:00:17]} 35. d4 {[%emt 0:01:10]} c6 {[%emt 0:01:43]} 36. d5+ {[%emt 0:01:09]} cxd5 {[%emt 0:00:04]} 37. cxd5+ {[%emt 0:00:04]} Kxd5 {[%emt 0:00:05]} 38. Rxf5+ {[%emt 0:00:06]} Ke4 {[%emt 0:00:10]} 39. Rf8 {[%emt 0:00:57]} Rh2+ {[%emt 0:00:12]} 40. Kg3 {[%emt 0:00:06]} Kxe3 {[%emt 0:01:00]} 41. Re8+ {[%emt 0:00:51]} Kd2 {[%emt 0:00:38]} 42. Kxg4 {[%emt 0:00:15]} Nd4 {[%emt 0:00:30]} 43. Re7 {[%emt 0:01:40]} a5 {[%emt 0:02:47]} 44. Rb7 {[%emt 0:01:49]} Rh6 {[%emt 0:00:52]} 45. Kg5 {[%emt 0:00:10]} Rc6 {[%emt 0:01:41]} 46. f5 {[%emt 0:01:14]} Nxf5 {[%emt 0:01:34]} 47. Kxf5 {[%emt 0:00:11]} Kxc2 {[%emt 0:00:02]} 48. Ke4 {[%emt 0:00:15]} Kb3 {[%emt 0:00:09]} 49. Kd5 {[%emt 0:00:18]} Rh6 {[%emt 0:00:04]} 50. Rb8 {[%emt 0:01:16]} Kxa4 {[%emt 0:00:08]} 51. Kc4 {[%emt 0:00:05]} Rh4+ {[%emt 0:00:45]} 52. Kc3 {[%emt 0:00:07]} b5 {[%emt 0:00:05]} 53. Rg8 {[%emt 0:00:16]} b4+ {[%emt 0:00:34]} 54. Kb2 {[%emt 0:00:43]} Rh2+ {[%emt 0:00:07]} 55. Kb1 {[%emt 0:00:34]} b3 {[%emt 0:00:19]} 56. Rg5 {[%emt 0:00:36]} Kb4 {[%emt 0:00:15]} 57. Rf5 {[%emt 0:00:28]} a4 {[%emt 0:00:11]} 58. Rg5 {[%emt 0:00:37]} Rh1+ {[%emt 0:00:15]} 0-1